[Event "*** Titled Tuesday Blitz"]
[Site "Chess.com"]
[Date "2018.12.04"]
[Round "1"]
[White "chidori_boruto"]
[Black "TheMagician"]
[Result "1-0"]
[WhiteElo "2582"]
[BlackElo "2244"]
[TimeControl "180+2"]
[EndTime "13:07:16 PST"]
[Termination "chidori_boruto won by resignation"]

1. d4 {[%clk 0:03:01.9]} 1... Nf6 {[%clk 0:02:58.9]} 2. Nf3 {[%clk 0:03:02.6]}
2... d6 {[%clk 0:02:57.8]} 3. Bg5 {[%clk 0:03:02.2]} 3... Nbd7 {[%clk
0:02:57.5]} 4. Nbd2 {[%clk 0:03:03.2]} 4... h6 {[%clk 0:02:56.8]} 5. Bh4 {[%clk
0:03:03.6]} 5... g5 {[%clk 0:02:56.8]} 6. Bg3 {[%clk 0:03:03.8]} 6... Nh5 {[%clk
0:02:57.9]} 7. e4 {[%clk 0:03:04.7]} 7... Bg7 {[%clk 0:02:56.8]} 8. Bc4 {[%clk
0:03:05.2]} 8... Nxg3 {[%clk 0:02:56.8]} 9. hxg3 {[%clk 0:03:05.2]} 9... c6
{[%clk 0:02:54.9]} 10. c3 {[%clk 0:03:05.7]} 10... b5 {[%clk 0:02:54.4]} 11. Bb3
{[%clk 0:03:06]} 11... e6 {[%clk 0:02:55.4]} 12. Qe2 {[%clk 0:03:05.7]} 12...
Qe7 {[%clk 0:02:56.2]} 13. Rd1 {[%clk 0:03:05.9]} 13... a5 {[%clk 0:02:56.4]}
14. a3 {[%clk 0:03:06.1]} 14... Ba6 {[%clk 0:02:56]} 15. O-O {[%clk 0:03:04.5]}
15... Nf8 {[%clk 0:02:51]} 16. Rfe1 {[%clk 0:03:05.4]} 16... Ng6 {[%clk
0:02:51.7]} 17. Nf1 {[%clk 0:03:01]} 17... a4 {[%clk 0:02:50.8]} 18. Ba2 {[%clk
0:03:00.3]} 18... h5 {[%clk 0:02:52]} 19. Qe3 {[%clk 0:02:53]} 19... Bh6 {[%clk
0:02:47.6]} 20. N3h2 {[%clk 0:02:42.2]} 20... g4 {[%clk 0:02:48]} 21. Qe2 {[%clk
0:02:39.8]} 21... Kf8 {[%clk 0:02:38.3]} 22. Ne3 {[%clk 0:02:37.3]} 22... Kg7
{[%clk 0:02:32.5]} 23. c4 {[%clk 0:02:36.5]} 23... Bxe3 {[%clk 0:02:31]} 24.
fxe3 {[%clk 0:02:28.9]} 24... bxc4 {[%clk 0:02:31.6]} 25. Bxc4 {[%clk
0:02:29.8]} 25... Qb7 {[%clk 0:02:31.1]} 26. Rd2 {[%clk 0:02:25.6]} 26... Bxc4
{[%clk 0:02:30.9]} 27. Qxc4 {[%clk 0:02:27.5]} 27... Ra6 {[%clk 0:02:31]} 28.
Rf1 {[%clk 0:02:26.4]} 28... Rb6 {[%clk 0:02:27.8]} 29. Rff2 {[%clk 0:02:27.1]}
29... d5 {[%clk 0:02:28.8]} 30. Qc2 {[%clk 0:02:22.3]} 30... Rb3 {[%clk
0:02:29.6]} 31. Nf1 {[%clk 0:02:21.2]} 31... h4 {[%clk 0:02:26.6]} 32. gxh4
{[%clk 0:02:14.9]} 32... Rxh4 {[%clk 0:02:25.2]} 33. e5 {[%clk 0:02:12.1]} 33...
Qe7 {[%clk 0:02:24.4]} 34. Qxc6 {[%clk 0:02:09.3]} 34... Rb8 {[%clk 0:02:25.2]}
35. Qxa4 {[%clk 0:02:06.5]} 35... Rbh8 {[%clk 0:02:25.7]} 36. Ng3 {[%clk
0:02:07.5]} 36... Qg5 {[%clk 0:02:23.9]} 37. Qd7 {[%clk 0:01:57.3]} 37... Rf8
{[%clk 0:02:24.3]} 38. Rd3 {[%clk 0:01:51.2]} 38... Nxe5 {[%clk 0:02:24.7]} 39.
dxe5 {[%clk 0:01:46.6]} 39... Qxe5 {[%clk 0:02:25.6]} 40. Nf1 {[%clk 0:01:24.6]}
40... Qh5 {[%clk 0:02:23.4]} 41. Ng3 {[%clk 0:01:18.8]} 41... Qe5 {[%clk
0:02:24.5]} 42. Nf1 {[%clk 0:01:19.3]} 42... Qh5 {[%clk 0:02:24.3]} 43. Rf4
{[%clk 0:01:20.2]} 43... Rh1+ {[%clk 0:02:14.9]} 44. Kf2 {[%clk 0:01:21.2]}
44... Kg6 {[%clk 0:01:58.5]} 45. Rdd4 {[%clk 0:01:19.5]} 45... Qh4+ {[%clk
0:01:52.7]} 46. Ke2 {[%clk 0:01:17.8]} 46... f5 {[%clk 0:01:45.3]} 47. Qxe6+
{[%clk 0:01:17.4]} 47... Rf6 {[%clk 0:01:45.7]} 48. Qg8+ {[%clk 0:01:17.6]}
48... Kh5 {[%clk 0:01:44.5]} 49. Qh7+ {[%clk 0:01:15.7]} 49... Kg5 {[%clk
0:01:45.6]} 50. Qg7+ {[%clk 0:01:14.9]} 50... Kh5 {[%clk 0:01:46]} 51. Rxd5
{[%clk 0:01:07.5]} 51... Qg5 {[%clk 0:01:45.2]} 52. Ng3+ {[%clk 0:01:04.3]}
52... Kh4 {[%clk 0:01:44.9]} 53. Qxg5+ {[%clk 0:01:04.9]} 53... Kxg3 {[%clk
0:01:44.6]} 54. Qxf6 {[%clk 0:01:03.1]} 54... Re1+ {[%clk 0:01:46.5]} 1-0

[Event "*** Titled Tuesday Blitz"]
[Site "Chess.com"]
[Date "2018.12.04"]
[Round "1"]
[White "Micki-taryan"]
[Black "Winehouse83"]
[Result "1-0"]
[WhiteElo "2911"]
[BlackElo "2447"]
[TimeControl "180+2"]
[EndTime "13:07:20 PST"]
[Termination "Micki-taryan won by resignation"]

1. Nf3 {[%clk 0:03:00.7]} 1... Nf6 {[%clk 0:02:59.2]} 2. g3 {[%clk 0:03:01.2]}
2... g6 {[%clk 0:03:00.2]} 3. Bg2 {[%clk 0:03:03.1]} 3... Bg7 {[%clk 0:03:01.4]}
4. O-O {[%clk 0:03:05]} 4... O-O {[%clk 0:03:02.5]} 5. c4 {[%clk 0:03:06.2]}
5... d6 {[%clk 0:03:03.4]} 6. d4 {[%clk 0:03:07]} 6... Nbd7 {[%clk 0:03:04.4]}
7. Nc3 {[%clk 0:03:08.4]} 7... e5 {[%clk 0:03:05.2]} 8. h3 {[%clk 0:03:09.7]}
8... c6 {[%clk 0:03:01.5]} 9. e4 {[%clk 0:03:10.2]} 9... Qb6 {[%clk 0:03:01.7]}
10. Re1 {[%clk 0:03:10.4]} 10... exd4 {[%clk 0:03:01.1]} 11. Nxd4 {[%clk
0:03:10.1]} 11... Ng4 {[%clk 0:03:02.2]} 12. Nce2 {[%clk 0:02:56.8]} 12... Nge5
{[%clk 0:02:50.5]} 13. b3 {[%clk 0:02:57.5]} 13... Nc5 {[%clk 0:02:35.9]} 14.
Be3 {[%clk 0:02:56.3]} 14... a5 {[%clk 0:02:22.3]} 15. Rb1 {[%clk 0:02:54.2]}
15... Bd7 {[%clk 0:02:03.4]} 16. Rf1 {[%clk 0:02:51.5]} 16... Rfe8 {[%clk
0:01:59.3]} 17. Nc2 {[%clk 0:02:43]} 17... Qc7 {[%clk 0:01:53.8]} 18. Bxc5
{[%clk 0:02:42.8]} 18... dxc5 {[%clk 0:01:54.9]} 19. f4 {[%clk 0:02:43.9]} 19...
Rad8 {[%clk 0:01:50.8]} 20. fxe5 {[%clk 0:02:44.9]} 20... Bxh3 {[%clk
0:01:51.4]} 21. Qe1 {[%clk 0:02:46.3]} 21... Bxg2 {[%clk 0:01:51.7]} 22. Kxg2
{[%clk 0:02:48.2]} 22... Qxe5 {[%clk 0:01:52.6]} 23. Nf4 {[%clk 0:02:39.2]}
23... f5 {[%clk 0:01:42.5]} 24. exf5 {[%clk 0:02:30.7]} 24... Qxf5 {[%clk
0:01:38.9]} 25. Qf2 {[%clk 0:02:31.3]} 25... Bc3 {[%clk 0:01:31.3]} 26. Rbd1
{[%clk 0:02:31.5]} 26... Qe4+ {[%clk 0:01:28]} 27. Kh2 {[%clk 0:02:32.1]} 27...
Rxd1 {[%clk 0:01:22.4]} 28. Rxd1 {[%clk 0:02:32.5]} 28... g5 {[%clk 0:01:23.2]}
29. Ng2 {[%clk 0:02:27.3]} 29... Rf8 {[%clk 0:01:16.8]} 30. Qe3 {[%clk
0:02:19.9]} 30... Qxc2 {[%clk 0:01:16.4]} 31. Rc1 {[%clk 0:02:21.2]} 31... Qb2
{[%clk 0:00:45.9]} 32. Qxc3 {[%clk 0:02:14.8]} 32... Qxa2 {[%clk 0:00:46.5]} 33.
Qe3 {[%clk 0:02:09.4]} 33... Rf2 {[%clk 0:00:39.2]} 34. Qxg5+ {[%clk 0:02:08.9]}
34... Kh8 {[%clk 0:00:40.1]} 35. Qd8+ {[%clk 0:02:06.4]} 35... Kg7 {[%clk
0:00:40.7]} 36. Qd7+ {[%clk 0:02:07.8]} 36... Kg8 {[%clk 0:00:37.7]} 37. Qc8+
{[%clk 0:02:08.8]} 37... Rf8 {[%clk 0:00:24.3]} 38. Qe6+ {[%clk 0:02:09.4]}
38... Kg7 {[%clk 0:00:21.8]} 39. Rd1 {[%clk 0:02:08.5]} 39... Rf7 {[%clk
0:00:22.7]} 40. Rd7 {[%clk 0:02:09.3]} 40... Rxd7 {[%clk 0:00:22.8]} 41. Qxd7+
{[%clk 0:02:11.2]} 41... Kg6 {[%clk 0:00:22.9]} 42. Qxb7 {[%clk 0:02:13.1]}
42... Kg5 {[%clk 0:00:19.4]} 43. Qxc6 {[%clk 0:02:08.8]} 43... Qxb3 {[%clk
0:00:20.8]} 44. Qxc5+ {[%clk 0:02:09.4]} 44... Kf6 {[%clk 0:00:21.6]} 45. Qxa5
{[%clk 0:02:09.6]} 45... Qxc4 {[%clk 0:00:22.3]} 46. Qh5 {[%clk 0:02:09.6]}
46... Qc2 {[%clk 0:00:22.3]} 47. Qh6+ {[%clk 0:02:09.4]} 47... Kf7 {[%clk
0:00:23]} 48. Qf4+ {[%clk 0:02:10.2]} 48... Kg6 {[%clk 0:00:24.1]} 49. Kh3
{[%clk 0:02:12.1]} 49... h5 {[%clk 0:00:22.8]} 50. Nh4+ {[%clk 0:02:13.5]} 50...
Kg7 {[%clk 0:00:24.3]} 51. Qg5+ {[%clk 0:02:14.7]} 51... Kf8 {[%clk 0:00:25]}
52. Qf5+ {[%clk 0:02:15.4]} 52... Qxf5+ {[%clk 0:00:25.2]} 53. Nxf5 {[%clk
0:02:17.3]} 53... Kf7 {[%clk 0:00:27.1]} 54. Kh4 {[%clk 0:02:19]} 54... Kg6
{[%clk 0:00:29]} 55. Nd4 {[%clk 0:02:20]} 1-0

[Event "*** Titled Tuesday Blitz"]
[Site "Chess.com"]
[Date "2018.12.04"]
[Round "1"]
[White "TheBigBadChessDad"]
[Black "Paparama_1917"]
[Result "1-0"]
[WhiteElo "2286"]
[BlackElo "2588"]
[TimeControl "180+2"]
[EndTime "13:07:23 PST"]
[Termination "TheBigBadChessDad won by resignation"]

1. d4 {[%clk 0:02:05.3]} 1... d6 {[%clk 0:02:58.1]} 2. Nf3 {[%clk 0:02:06.2]}
2... Bg4 {[%clk 0:02:58]} 3. e4 {[%clk 0:02:06.8]} 3... Nd7 {[%clk 0:02:57.6]}
4. Be2 {[%clk 0:02:07.3]} 4... c6 {[%clk 0:02:54.7]} 5. h3 {[%clk 0:02:08.1]}
5... Bxf3 {[%clk 0:02:56]} 6. Bxf3 {[%clk 0:02:10]} 6... e5 {[%clk 0:02:57.3]}
7. c3 {[%clk 0:02:10.8]} 7... Ngf6 {[%clk 0:02:58.1]} 8. O-O {[%clk 0:02:12.1]}
8... Be7 {[%clk 0:02:58.5]} 9. Re1 {[%clk 0:02:13.5]} 9... O-O {[%clk
0:02:59.4]} 10. Nd2 {[%clk 0:02:14.8]} 10... Qc7 {[%clk 0:03:00.2]} 11. Qc2
{[%clk 0:02:15.6]} 11... Rad8 {[%clk 0:03:01.1]} 12. a4 {[%clk 0:02:16.8]} 12...
Rfe8 {[%clk 0:03:02]} 13. a5 {[%clk 0:02:17.8]} 13... Bf8 {[%clk 0:03:02.1]} 14.
dxe5 {[%clk 0:02:16.8]} 14... dxe5 {[%clk 0:02:58.2]} 15. Nc4 {[%clk 0:02:17.4]}
15... Nc5 {[%clk 0:02:48.3]} 16. Bg5 {[%clk 0:02:16.9]} 16... Be7 {[%clk
0:02:48.7]} 17. Rad1 {[%clk 0:02:12.1]} 17... Ne6 {[%clk 0:02:49.7]} 18. Bxf6
{[%clk 0:02:12.7]} 18... Bxf6 {[%clk 0:02:50.3]} 19. Bg4 {[%clk 0:02:12]} 19...
Nf4 {[%clk 0:02:30.9]} 20. g3 {[%clk 0:02:12]} 20... h5 {[%clk 0:02:31.7]} 21.
Bf5 {[%clk 0:02:06.8]} 21... Ne6 {[%clk 0:02:25.1]} 22. Bxe6 {[%clk 0:02:05.6]}
22... Rxe6 {[%clk 0:02:23.4]} 23. Rxd8+ {[%clk 0:02:06.3]} 23... Bxd8 {[%clk
0:02:23.5]} 24. Rd1 {[%clk 0:02:05.5]} 24... h4 {[%clk 0:01:35.6]} 25. b4 {[%clk
0:02:01.7]} 25... hxg3 {[%clk 0:01:34.5]} 26. fxg3 {[%clk 0:02:03.6]} 26... Bg5
{[%clk 0:01:32.2]} 27. Kg2 {[%clk 0:02:03.1]} 27... Qe7 {[%clk 0:01:31.1]} 28.
Qd3 {[%clk 0:02:02.3]} 28... Qf6 {[%clk 0:01:21.4]} 29. Rf1 {[%clk 0:01:57.3]}
29... Qg6 {[%clk 0:01:22.3]} 30. Rf3 {[%clk 0:01:53.9]} 30... Bf6 {[%clk
0:01:03.7]} 31. Ne3 {[%clk 0:01:46.7]} 31... Qg5 {[%clk 0:01:02.1]} 32. Ng4
{[%clk 0:01:42.8]} 32... Be7 {[%clk 0:00:57.9]} 33. Qd7 {[%clk 0:01:37]} 33...
Rd6 {[%clk 0:00:51.6]} 34. Qe8+ {[%clk 0:01:38]} 34... Bf8 {[%clk 0:00:52.6]}
35. Qxf7+ {[%clk 0:01:38.4]} 35... Kh7 {[%clk 0:00:52.8]} 36. Qxf8 {[%clk
0:01:38.1]} 36... Rd2+ {[%clk 0:00:44.1]} 37. Rf2 {[%clk 0:01:38.7]} 37... Rxf2+
{[%clk 0:00:42]} 38. Qxf2 {[%clk 0:01:38]} 38... Qc1 {[%clk 0:00:41.4]} 39. Qf3
{[%clk 0:01:31.1]} 39... b6 {[%clk 0:00:36.7]} 40. axb6 {[%clk 0:01:31.4]} 40...
axb6 {[%clk 0:00:36.9]} 41. h4 {[%clk 0:01:32.6]} 41... c5 {[%clk 0:00:37.5]}
42. bxc5 {[%clk 0:01:33.4]} 42... bxc5 {[%clk 0:00:38.7]} 43. Nf2 {[%clk
0:01:33.5]} 43... Qd2 {[%clk 0:00:37.5]} 44. Qf5+ {[%clk 0:01:32.6]} 44... Kh8
{[%clk 0:00:36]} 45. Qxe5 {[%clk 0:01:33.7]} 45... c4 {[%clk 0:00:37.5]} 46.
Qe8+ {[%clk 0:01:32.1]} 46... Kh7 {[%clk 0:00:38.2]} 47. Qh5+ {[%clk 0:01:32.7]}
47... Kg8 {[%clk 0:00:38.1]} 48. Qd5+ {[%clk 0:01:33.8]} 1-0

[Event "*** Titled Tuesday Blitz"]
[Site "Chess.com"]
[Date "2018.12.04"]
[Round "1"]
[White "NemtsevIgor"]
[Black "amintabatabaei"]
[Result "0-1"]
[WhiteElo "2378"]
[BlackElo "2708"]
[TimeControl "180+2"]
[EndTime "13:07:24 PST"]
[Termination "amintabatabaei won on time"]

1. d4 {[%clk 0:02:59.7]} 1... Nf6 {[%clk 0:03:00.1]} 2. Bf4 {[%clk 0:02:59.5]}
2... c5 {[%clk 0:02:58.8]} 3. e3 {[%clk 0:02:59.9]} 3... Nd5 {[%clk 0:02:55.6]}
4. Bg3 {[%clk 0:02:58.4]} 4... Qb6 {[%clk 0:02:53.8]} 5. Nc3 {[%clk 0:02:49]}
5... Nxc3 {[%clk 0:02:52.1]} 6. bxc3 {[%clk 0:02:50.2]} 6... d5 {[%clk
0:02:52.7]} 7. Nf3 {[%clk 0:02:45.6]} 7... Qa5 {[%clk 0:02:48.7]} 8. Qd2 {[%clk
0:02:21]} 8... Nc6 {[%clk 0:02:49.2]} 9. Be2 {[%clk 0:02:18.8]} 9... Bg4 {[%clk
0:02:47.1]} 10. dxc5 {[%clk 0:02:09]} 10... e6 {[%clk 0:02:37.4]} 11. O-O {[%clk
0:02:09.3]} 11... Bxc5 {[%clk 0:02:33.3]} 12. Rab1 {[%clk 0:02:09.2]} 12... Bb6
{[%clk 0:01:44.8]} 13. Rb5 {[%clk 0:01:54.7]} 13... Qxa2 {[%clk 0:01:40]} 14.
Bd6 {[%clk 0:01:44.8]} 14... Rd8 {[%clk 0:01:38.3]} 15. Rbb1 {[%clk 0:01:28.9]}
15... d4 {[%clk 0:01:25.1]} 16. Ra1 {[%clk 0:00:59.4]} 16... Qd5 {[%clk
0:01:24.1]} 17. Ba3 {[%clk 0:00:59]} 17... dxe3 {[%clk 0:01:22.9]} 18. Qc1
{[%clk 0:00:57]} 18... exf2+ {[%clk 0:01:23.9]} 19. Kh1 {[%clk 0:00:57.9]} 19...
Bc5 {[%clk 0:01:20]} 20. c4 {[%clk 0:00:45.8]} 20... Qd6 {[%clk 0:01:18.4]} 21.
Bxc5 {[%clk 0:00:44.8]} 21... Qxc5 {[%clk 0:01:20.3]} 22. Rb1 {[%clk 0:00:37.3]}
22... O-O {[%clk 0:01:18.2]} 23. Rxb7 {[%clk 0:00:37.4]} 23... Bxf3 {[%clk
0:01:16.3]} 24. Bxf3 {[%clk 0:00:37.3]} 24... Ne5 {[%clk 0:01:17.4]} 25. Qg5
{[%clk 0:00:30.1]} 25... h6 {[%clk 0:01:12.1]} 26. Qh5 {[%clk 0:00:25.7]} 26...
Qxc4 {[%clk 0:01:11.3]} 27. Rxf2 {[%clk 0:00:19]} 27... Rd2 {[%clk 0:01:00.4]}
28. Be2 {[%clk 0:00:10.8]} 28... Qd4 {[%clk 0:00:54.5]} 29. Qh4 {[%clk
0:00:05.3]} 29... Qxh4 {[%clk 0:00:53.7]} 0-1

[Event "*** Titled Tuesday Blitz"]
[Site "Chess.com"]
[Date "2018.12.04"]
[Round "1"]
[White "Satscho"]
[Black "mikhaillushenkov"]
[Result "0-1"]
[WhiteElo "2324"]
[BlackElo "2646"]
[TimeControl "180+2"]
[EndTime "13:07:26 PST"]
[Termination "mikhaillushenkov won by resignation"]

1. e4 {[%clk 0:03:00.1]} 1... e5 {[%clk 0:02:59]} 2. Nf3 {[%clk 0:02:56.5]} 2...
Nc6 {[%clk 0:03:00]} 3. Nc3 {[%clk 0:02:50.8]} 3... Nf6 {[%clk 0:03:00.5]} 4. d4
{[%clk 0:02:51.6]} 4... exd4 {[%clk 0:03:01.3]} 5. Nxd4 {[%clk 0:02:53.5]} 5...
Bb4 {[%clk 0:03:00.6]} 6. Nxc6 {[%clk 0:02:53.6]} 6... bxc6 {[%clk 0:03:01.5]}
7. Bd3 {[%clk 0:02:53.9]} 7... d6 {[%clk 0:03:02.2]} 8. O-O {[%clk 0:02:50.2]}
8... h6 {[%clk 0:02:59.2]} 9. Qf3 {[%clk 0:02:48.4]} 9... Ng4 {[%clk 0:02:48.6]}
10. Qg3 {[%clk 0:02:39.7]} 10... Qf6 {[%clk 0:02:48.2]} 11. Bd2 {[%clk
0:02:33.2]} 11... Bc5 {[%clk 0:02:37]} 12. h3 {[%clk 0:02:07.1]} 12... Ne5
{[%clk 0:02:35.2]} 13. Kh1 {[%clk 0:02:08.4]} 13... g5 {[%clk 0:02:07.8]} 14. f4
{[%clk 0:01:53.6]} 14... gxf4 {[%clk 0:02:08.5]} 15. Bxf4 {[%clk 0:01:33.6]}
15... Be6 {[%clk 0:01:45.5]} 16. Be3 {[%clk 0:00:57.3]} 16... Qg6 {[%clk
0:01:43.5]} 17. Qxg6 {[%clk 0:00:56.8]} 17... fxg6 {[%clk 0:01:45.4]} 18. Bxc5
{[%clk 0:00:57.5]} 18... dxc5 {[%clk 0:01:47.3]} 19. Na4 {[%clk 0:00:36.5]}
19... c4 {[%clk 0:01:46.4]} 20. Be2 {[%clk 0:00:37.1]} 20... Rb8 {[%clk
0:01:47.2]} 21. Nc5 {[%clk 0:00:34]} 21... Ke7 {[%clk 0:01:48.2]} 22. b3 {[%clk
0:00:33.9]} 22... Rhd8 {[%clk 0:01:39.2]} 23. Na6 {[%clk 0:00:26.3]} 23... Rb7
{[%clk 0:01:34.5]} 24. Nc5 {[%clk 0:00:27.4]} 24... Rb5 {[%clk 0:01:33.2]} 25.
Nxe6 {[%clk 0:00:26]} 25... Kxe6 {[%clk 0:01:35.1]} 26. Rfd1 {[%clk 0:00:22.4]}
26... Rbb8 {[%clk 0:01:32.3]} 27. Bxc4+ {[%clk 0:00:19.3]} 27... Nxc4 {[%clk
0:01:32.1]} 28. bxc4 {[%clk 0:00:21.2]} 28... Ke5 {[%clk 0:01:33.6]} 29. Kg1
{[%clk 0:00:19.8]} 29... Kxe4 {[%clk 0:01:30.8]} 30. Kf2 {[%clk 0:00:20.9]}
30... Rxd1 {[%clk 0:01:28.7]} 31. Rxd1 {[%clk 0:00:22.8]} 31... Rb2 {[%clk
0:01:29.9]} 32. Re1+ {[%clk 0:00:23.3]} 32... Kd4 {[%clk 0:01:30.2]} 33. Re6
{[%clk 0:00:23.2]} 33... Rxc2+ {[%clk 0:01:30.6]} 34. Kg3 {[%clk 0:00:24.1]}
34... Rc3+ {[%clk 0:01:26.2]} 35. Kf4 {[%clk 0:00:23.7]} 35... g5+ {[%clk
0:01:26.2]} 36. Kf5 {[%clk 0:00:23.9]} 36... c5 {[%clk 0:01:25.4]} 37. Rxh6
{[%clk 0:00:24.6]} 37... Rg3 {[%clk 0:01:26.5]} 38. Rc6 {[%clk 0:00:23.9]} 38...
Rxg2 {[%clk 0:01:24.8]} 39. Rxc7 {[%clk 0:00:25.3]} 39... Rxa2 {[%clk 0:01:26]}
40. Kxg5 {[%clk 0:00:25.8]} 40... Kxc4 {[%clk 0:01:27.5]} 41. h4 {[%clk
0:00:27.3]} 41... a5 {[%clk 0:01:28.4]} 42. h5 {[%clk 0:00:28.6]} 42... Rg2+
{[%clk 0:01:29.4]} 43. Kf4 {[%clk 0:00:28.7]} 43... Rh2 {[%clk 0:01:30.6]} 44.
Kg5 {[%clk 0:00:30.1]} 44... a4 {[%clk 0:01:31.8]} 45. h6 {[%clk 0:00:31.6]}
45... a3 {[%clk 0:01:33]} 46. h7 {[%clk 0:00:33.1]} 46... a2 {[%clk 0:01:34.3]}
47. Kg6 {[%clk 0:00:34.6]} 47... a1=Q {[%clk 0:01:33.7]} 0-1

[Event "*** Titled Tuesday Blitz"]
[Site "Chess.com"]
[Date "2018.12.04"]
[Round "1"]
[White "staz_staz"]
[Black "Alexander_Donchenko"]
[Result "0-1"]
[WhiteElo "2359"]
[BlackElo "2681"]
[TimeControl "180+2"]
[EndTime "13:07:29 PST"]
[Termination "Alexander_Donchenko won by resignation"]

1. d4 {[%clk 0:03:01.5]} 1... Nf6 {[%clk 0:03:00.6]} 2. Nf3 {[%clk 0:03:01.9]}
2... d5 {[%clk 0:03:01.4]} 3. c4 {[%clk 0:03:02.7]} 3... e6 {[%clk 0:03:01.6]}
4. e3 {[%clk 0:03:03.2]} 4... dxc4 {[%clk 0:02:59.5]} 5. Bxc4 {[%clk 0:03:03.4]}
5... c5 {[%clk 0:03:00.9]} 6. O-O {[%clk 0:03:02.8]} 6... a6 {[%clk 0:03:02.4]}
7. a4 {[%clk 0:02:56.6]} 7... Nc6 {[%clk 0:03:03.2]} 8. Qe2 {[%clk 0:02:38]}
8... Qc7 {[%clk 0:03:02.9]} 9. Rd1 {[%clk 0:02:37.6]} 9... Be7 {[%clk
0:03:03.1]} 10. Nc3 {[%clk 0:02:38.2]} 10... O-O {[%clk 0:03:03.8]} 11. h3
{[%clk 0:02:32.4]} 11... b6 {[%clk 0:03:03.6]} 12. Bd2 {[%clk 0:02:31.8]} 12...
Bb7 {[%clk 0:03:02.3]} 13. Rac1 {[%clk 0:02:32.6]} 13... Rfd8 {[%clk 0:03:01.1]}
14. Ba2 {[%clk 0:02:32.9]} 14... Rac8 {[%clk 0:02:52.4]} 15. dxc5 {[%clk
0:02:26.2]} 15... bxc5 {[%clk 0:02:42.3]} 16. e4 {[%clk 0:02:26.6]} 16... Nd7
{[%clk 0:02:36.3]} 17. Bg5 {[%clk 0:02:23.4]} 17... Bxg5 {[%clk 0:01:56.1]} 18.
Nxg5 {[%clk 0:02:23.3]} 18... Nd4 {[%clk 0:01:49.7]} 19. Qg4 {[%clk 0:01:56.6]}
19... Ne5 {[%clk 0:01:43.9]} 20. Qg3 {[%clk 0:01:40.2]} 20... h6 {[%clk
0:01:42.8]} 21. f4 {[%clk 0:01:41.2]} 21... Nec6 {[%clk 0:01:01.2]} 22. Nf3
{[%clk 0:01:37.5]} 22... Nxf3+ {[%clk 0:01:02.3]} 23. Qxf3 {[%clk 0:01:39.4]}
23... Nd4 {[%clk 0:01:03.6]} 24. Qf2 {[%clk 0:01:39.2]} 24... Qb6 {[%clk
0:01:01.1]} 25. Rd2 {[%clk 0:01:29.5]} 25... Bc6 {[%clk 0:00:51.8]} 26. Rcd1
{[%clk 0:01:26.4]} 26... Qb7 {[%clk 0:00:52.3]} 27. f5 {[%clk 0:01:19.9]} 27...
exf5 {[%clk 0:00:39.8]} 28. exf5 {[%clk 0:01:12.5]} 28... Qe7 {[%clk 0:00:38.2]}
29. f6 {[%clk 0:00:45.1]} 29... Qxf6 {[%clk 0:00:39.3]} 30. Qg3 {[%clk
0:00:46.3]} 30... Qg5 {[%clk 0:00:37]} 31. Qf2 {[%clk 0:00:43.3]} 31... Nf3+
{[%clk 0:00:36.1]} 32. Kh1 {[%clk 0:00:37.8]} 32... Rxd2 {[%clk 0:00:36.9]} 33.
Rxd2 {[%clk 0:00:38.2]} 33... Qxd2 {[%clk 0:00:38]} 0-1

[Event "*** Titled Tuesday Blitz"]
[Site "Chess.com"]
[Date "2018.12.04"]
[Round "1"]
[White "GadimbayliA"]
[Black "dmosesov"]
[Result "1-0"]
[WhiteElo "2647"]
[BlackElo "2333"]
[TimeControl "180+2"]
[EndTime "13:07:34 PST"]
[Termination "GadimbayliA won on time"]

1. e4 {[%clk 0:02:59.4]} 1... c5 {[%clk 0:03:00.3]} 2. Nf3 {[%clk 0:02:59.4]}
2... e6 {[%clk 0:03:01]} 3. d4 {[%clk 0:03:00.2]} 3... cxd4 {[%clk 0:03:02.9]}
4. Nxd4 {[%clk 0:03:02.1]} 4... Nc6 {[%clk 0:03:04.4]} 5. Nc3 {[%clk 0:03:02.5]}
5... Qc7 {[%clk 0:03:03.9]} 6. Be3 {[%clk 0:03:02.7]} 6... a6 {[%clk 0:03:04.1]}
7. Qd2 {[%clk 0:03:01.9]} 7... Nf6 {[%clk 0:03:04.3]} 8. f4 {[%clk 0:03:02.9]}
8... Bb4 {[%clk 0:03:02.1]} 9. Bd3 {[%clk 0:03:02.7]} 9... d5 {[%clk 0:02:41.8]}
10. e5 {[%clk 0:02:54.1]} 10... Ng4 {[%clk 0:02:11.4]} 11. Bg1 {[%clk
0:02:50.2]} 11... f6 {[%clk 0:00:53.9]} 12. Nxc6 {[%clk 0:02:23.5]} 12... Qxc6
{[%clk 0:00:52.6]} 13. Bd4 {[%clk 0:02:00.9]} 13... fxe5 {[%clk 0:00:43.6]} 14.
fxe5 {[%clk 0:02:02.8]} 14... O-O {[%clk 0:00:29.4]} 15. O-O-O {[%clk
0:02:02.5]} 15... Bc5 {[%clk 0:00:21.5]} 16. h3 {[%clk 0:01:53.5]} 16... Nf2
{[%clk 0:00:12.2]} 17. Bxf2 {[%clk 0:01:39.8]} 17... Rxf2 {[%clk 0:00:14.1]} 18.
Qg5 {[%clk 0:01:40.9]} 18... Bd7 {[%clk 0:00:06.4]} 19. Kb1 {[%clk 0:01:31.6]}
19... Raf8 {[%clk 0:00:05.3]} 20. h4 {[%clk 0:01:32.6]} 20... h6 {[%clk
0:00:06]} 21. Qg6 {[%clk 0:01:32.7]} 21... R2f5 {[%clk 0:00:06.1]} 22. Bxf5
{[%clk 0:01:26.3]} 22... Rxf5 {[%clk 0:00:08]} 23. Rhf1 {[%clk 0:01:26.1]} 23...
Bf2 {[%clk 0:00:04.6]} 24. Rd2 {[%clk 0:01:20.1]} 24... Be8 {[%clk 0:00:03.8]}
25. Qg4 {[%clk 0:01:18.6]} 25... Bh5 {[%clk 0:00:04.8]} 26. Qa4 {[%clk
0:00:53.6]} 26... Qxa4 {[%clk 0:00:03.5]} 27. Nxa4 {[%clk 0:00:55.5]} 27... Be3
{[%clk 0:00:03.8]} 28. Rxf5 {[%clk 0:00:55.2]} 28... exf5 {[%clk 0:00:04.9]} 29.
Rxd5 {[%clk 0:00:56.5]} 29... Bg6 {[%clk 0:00:05.9]} 30. Nc5 {[%clk 0:00:56.3]}
30... f4 {[%clk 0:00:06.1]} 31. Rd8+ {[%clk 0:00:55]} 1-0